[Event "Live Chess"]
[Site "Chess.com"]
[Date "2023.05.21"]
[Round "-"]
[White "Biranidun"]
[Black "Tilbs_12"]
[Result "1-0"]
[WhiteElo "2639"]
[BlackElo "1557"]
[TimeControl "300"]
[EndTime "17:38:46 PDT"]
[Termination "Biranidun won by resignation"]

1. e4 {[%clk 0:04:59]} 1... c6 {[%clk 0:04:58.7]} 2. Ne2 {[%clk 0:04:57.7]} 2...
d5 {[%clk 0:04:57.9]} 3. e5 {[%clk 0:04:57.2]} 3... c5 {[%clk 0:04:56.8]} 4. d4
{[%clk 0:04:56.2]} 4... Nc6 {[%clk 0:04:54.5]} 5. dxc5 {[%clk 0:04:54.7]} 5...
Bg4 {[%clk 0:04:52.1]} 6. f3 {[%clk 0:04:49.9]} 6... Bf5 {[%clk 0:04:49.7]} 7.
Nd4 {[%clk 0:04:47.7]} 7... e6 {[%clk 0:04:41.9]} 8. Bb5 {[%clk 0:04:42.7]} 8...
Rc8 {[%clk 0:04:35.5]} 9. Bxc6+ {[%clk 0:04:39.6]} 9... bxc6 {[%clk 0:04:33.5]}
10. Nxf5 {[%clk 0:04:39.2]} 10... exf5 {[%clk 0:04:32.2]} 11. b4 {[%clk
0:04:37.8]} 11... Ne7 {[%clk 0:04:26.1]} 12. O-O {[%clk 0:04:36.5]} 12... Ng6
{[%clk 0:04:24.2]} 13. Bb2 {[%clk 0:04:34.6]} 13... Be7 {[%clk 0:04:22.1]} 14.
Nd2 {[%clk 0:04:33.5]} 14... O-O {[%clk 0:04:20.4]} 15. f4 {[%clk 0:04:33.1]}
15... a5 {[%clk 0:04:09.2]} 16. a3 {[%clk 0:04:32.1]} 16... axb4 {[%clk
0:04:06.1]} 17. axb4 {[%clk 0:04:32]} 17... Rb8 {[%clk 0:04:04.8]} 18. Ba3
{[%clk 0:04:26.3]} 18... Qd7 {[%clk 0:03:47.8]} 19. Nb3 {[%clk 0:04:25.4]} 19...
f6 {[%clk 0:03:45.6]} 20. e6 {[%clk 0:04:20]} 20... Qxe6 {[%clk 0:03:43.7]} 21.
Nd4 {[%clk 0:04:19.9]} 21... Qd7 {[%clk 0:03:41.3]} 22. Qd3 {[%clk 0:04:18.3]}
22... Bd8 {[%clk 0:03:31.3]} 23. Qxf5 {[%clk 0:04:13.6]} 23... Qxf5 {[%clk
0:03:29.2]} 24. Nxf5 {[%clk 0:04:13.5]} 24... Bc7 {[%clk 0:03:25.8]} 25. g3
{[%clk 0:04:12.6]} 25... Rfe8 {[%clk 0:03:20.5]} 26. Rfe1 {[%clk 0:04:11]} 26...
Kf7 {[%clk 0:03:14.5]} 27. Nd4 {[%clk 0:04:09.6]} 27... Ne7 {[%clk 0:03:06.8]}
28. Re3 {[%clk 0:04:08.1]} 28... g5 {[%clk 0:02:55.7]} 29. fxg5 {[%clk 0:04:07]}
29... fxg5 {[%clk 0:02:53.7]} 30. Rf1+ {[%clk 0:04:06.2]} 30... Kg6 {[%clk
0:02:49.5]} 31. Rfe1 {[%clk 0:04:06.1]} 31... Kf7 {[%clk 0:02:38]} 32. Rxe7+
{[%clk 0:04:05.2]} 32... Rxe7 {[%clk 0:02:37]} 33. Rxe7+ {[%clk 0:04:05.1]}
33... Kxe7 {[%clk 0:02:36.3]} 34. Nxc6+ {[%clk 0:04:05]} 34... Kf6 {[%clk
0:02:33.6]} 35. Nxb8 {[%clk 0:04:04.9]} 35... Bxb8 {[%clk 0:02:28.7]} 36. b5
{[%clk 0:04:04.5]} 36... Ke6 {[%clk 0:02:25.5]} 37. c6 {[%clk 0:04:04]} 37...
Bc7 {[%clk 0:02:22.7]} 38. Bc5 {[%clk 0:04:03.1]} 38... Bd6 {[%clk 0:01:54.1]}
39. Bxd6 {[%clk 0:04:02.1]} 39... Kxd6 {[%clk 0:01:53.2]} 40. Kf2 {[%clk
0:04:02]} 40... h5 {[%clk 0:01:47.8]} 41. Ke3 {[%clk 0:04:01.3]} 41... Kc7
{[%clk 0:01:45.1]} 42. Kd4 {[%clk 0:04:00.7]} 42... h4 {[%clk 0:01:43.6]} 43.
gxh4 {[%clk 0:03:59.6]} 43... gxh4 {[%clk 0:01:42.8]} 44. Kxd5 {[%clk
0:03:59.5]} 1-0

[Event "Live Chess"]
[Site "Chess.com"]
[Date "2023.05.21"]
[Round "-"]
[White "Conradical12"]
[Black "SupremeTactician"]
[Result "1/2-1/2"]
[WhiteElo "1634"]
[BlackElo "2325"]
[TimeControl "300"]
[EndTime "17:39:09 PDT"]
[Termination "Game drawn by repetition"]

1. e4 {[%clk 0:04:53.2]} 1... e5 {[%clk 0:04:58.5]} 2. f4 {[%clk 0:04:45.1]}
2... exf4 {[%clk 0:04:57.1]} 3. Nf3 {[%clk 0:04:43]} 3... g5 {[%clk 0:04:56.3]}
4. Bc4 {[%clk 0:04:39.8]} 4... d6 {[%clk 0:04:54.2]} 5. d4 {[%clk 0:04:34.4]}
5... h6 {[%clk 0:04:53.2]} 6. O-O {[%clk 0:04:31.1]} 6... Bg7 {[%clk 0:04:52.5]}
7. Nc3 {[%clk 0:04:25]} 7... Ne7 {[%clk 0:04:51.2]} 8. h3 {[%clk 0:03:45]} 8...
Ng6 {[%clk 0:04:48.6]} 9. e5 {[%clk 0:03:41.4]} 9... dxe5 {[%clk 0:04:46.6]} 10.
Nxe5 {[%clk 0:03:40]} 10... Nxe5 {[%clk 0:04:45.3]} 11. dxe5 {[%clk 0:03:39.1]}
11... Qxd1 {[%clk 0:04:44.2]} 12. Rxd1 {[%clk 0:03:38.2]} 12... Bxe5 {[%clk
0:04:43.7]} 13. Nd5 {[%clk 0:03:37.5]} 13... O-O {[%clk 0:04:40.3]} 14. Re1
{[%clk 0:03:34.1]} 14... Bd4+ {[%clk 0:04:38.6]} 15. Kh1 {[%clk 0:03:31.9]}
15... Bb6 {[%clk 0:04:36.4]} 16. Bd3 {[%clk 0:03:25.4]} 16... c6 {[%clk
0:04:35.3]} 17. Nf6+ {[%clk 0:03:21.2]} 17... Kg7 {[%clk 0:04:32.8]} 18. Ne8+
{[%clk 0:03:18.9]} 18... Kh8 {[%clk 0:04:31.2]} 19. Bd2 {[%clk 0:03:16]} 19...
Be6 {[%clk 0:04:29.6]} 20. Bc3+ {[%clk 0:03:05.9]} 20... Kg8 {[%clk 0:04:17.3]}
21. Nf6+ {[%clk 0:03:04.4]} 21... Kg7 {[%clk 0:04:14.6]} 22. Nh5+ {[%clk
0:02:56.1]} 22... Kg8 {[%clk 0:04:10.1]} 23. Nf6+ {[%clk 0:02:45]} 23... Kg7
{[%clk 0:04:09.3]} 24. Nh5+ {[%clk 0:02:44.9]} 24... Kg8 {[%clk 0:04:08.2]} 25.
Nf6+ {[%clk 0:02:44.8]} 1/2-1/2

[Event "Live Chess"]
[Site "Chess.com"]
[Date "2023.05.21"]
[Round "-"]
[White "WelshTiger"]
[Black "ShanthamGrarks"]
[Result "1-0"]
[WhiteElo "2350"]
[BlackElo "2009"]
[TimeControl "300"]
[EndTime "17:39:22 PDT"]
[Termination "WelshTiger won by resignation"]

1. e4 {[%clk 0:04:55.6]} 1... e6 {[%clk 0:04:56.3]} 2. d4 {[%clk 0:04:54]} 2...
d5 {[%clk 0:04:54.8]} 3. Nd2 {[%clk 0:04:53.7]} 3... Nf6 {[%clk 0:04:52.7]} 4.
e5 {[%clk 0:04:52.7]} 4... Nfd7 {[%clk 0:04:52.3]} 5. Bd3 {[%clk 0:04:52.1]}
5... c5 {[%clk 0:04:51.7]} 6. c3 {[%clk 0:04:51.8]} 6... Nc6 {[%clk 0:04:51.1]}
7. Ne2 {[%clk 0:04:51.2]} 7... cxd4 {[%clk 0:04:50.7]} 8. cxd4 {[%clk 0:04:50]}
8... h6 {[%clk 0:04:50.3]} 9. f4 {[%clk 0:04:47.5]} 9... Be7 {[%clk 0:04:49.8]}
10. f5 {[%clk 0:04:45.6]} 10... exf5 {[%clk 0:04:47.6]} 11. Bxf5 {[%clk
0:04:44.3]} 11... Nb6 {[%clk 0:04:46.5]} 12. Bxc8 {[%clk 0:04:41.6]} 12... Rxc8
{[%clk 0:04:45.3]} 13. O-O {[%clk 0:04:40.8]} 13... O-O {[%clk 0:04:38.7]} 14.
Nf3 {[%clk 0:04:38.5]} 14... f6 {[%clk 0:04:24.7]} 15. Nf4 {[%clk 0:04:32.6]}
15... fxe5 {[%clk 0:04:05.9]} 16. Ne6 {[%clk 0:04:29.7]} 16... Qd7 {[%clk
0:04:04.6]} 17. Nxf8 {[%clk 0:04:28.7]} 17... Rxf8 {[%clk 0:04:01.8]} 18. Nxe5
{[%clk 0:04:27.8]} 18... Nxe5 {[%clk 0:04:00.2]} 19. dxe5 {[%clk 0:04:27.1]}
19... Nc4 {[%clk 0:03:50]} 20. Rxf8+ {[%clk 0:04:24]} 20... Bxf8 {[%clk
0:03:47.7]} 21. Bf4 {[%clk 0:04:20.5]} 21... Nxb2 {[%clk 0:03:41.6]} 22. Qb3
{[%clk 0:04:16.2]} 22... Nc4 {[%clk 0:03:38.9]} 23. Rd1 {[%clk 0:04:15.7]} 23...
Qf5 {[%clk 0:03:25.3]} 24. g3 {[%clk 0:04:05.6]} 24... Bc5+ {[%clk 0:03:22.2]}
25. Kg2 {[%clk 0:04:01.4]} 25... Qe4+ {[%clk 0:03:16.6]} 26. Qf3 {[%clk
0:04:00.4]} 26... Qc2+ {[%clk 0:03:15.7]} 27. Kh3 {[%clk 0:03:57.4]} 27... d4
{[%clk 0:02:59.8]} 28. Qd3 {[%clk 0:03:46.4]} 28... Qxa2 {[%clk 0:02:53.4]} 29.
e6 {[%clk 0:03:45]} 29... Be7 {[%clk 0:02:41.9]} 30. Qf5 {[%clk 0:03:39.1]}
30... Bf6 {[%clk 0:02:28.7]} 31. Bxh6 {[%clk 0:03:11]} 31... Nd6 {[%clk
0:02:16.8]} 32. Qg4 {[%clk 0:03:04.1]} 32... Qc2 {[%clk 0:02:06.5]} 33. Rf1
{[%clk 0:03:01.6]} 33... Ne4 {[%clk 0:01:59.7]} 34. e7 {[%clk 0:02:54.9]} 34...
Kf7 {[%clk 0:01:58.6]} 35. Qxg7+ {[%clk 0:02:53.5]} 35... Ke6 {[%clk 0:01:57.7]}
36. e8=Q+ {[%clk 0:02:50.3]} 36... Kd5 {[%clk 0:01:55.9]} 37. Qgd7+ {[%clk
0:02:43.2]} 37... Nd6 {[%clk 0:01:55]} 38. Qee6+ {[%clk 0:02:41.5]} 1-0

[Event "Live Chess"]
[Site "Chess.com"]
[Date "2023.05.21"]
[Round "-"]
[White "manthanit"]
[Black "CheckThis4"]
[Result "0-1"]
[WhiteElo "1047"]
[BlackElo "2511"]
[TimeControl "300"]
[EndTime "17:39:59 PDT"]
[Termination "CheckThis4 won by checkmate"]

1. e4 {[%clk 0:04:59.3]} 1... d5 {[%clk 0:04:57.1]} 2. exd5 {[%clk 0:04:57.9]}
2... Nf6 {[%clk 0:04:56.5]} 3. Nc3 {[%clk 0:04:57]} 3... c6 {[%clk 0:04:54.7]}
4. dxc6 {[%clk 0:04:55.5]} 4... Nxc6 {[%clk 0:04:54.6]} 5. Nf3 {[%clk
0:04:54.6]} 5... e5 {[%clk 0:04:53.9]} 6. d3 {[%clk 0:04:53.2]} 6... Bc5 {[%clk
0:04:51.7]} 7. Be2 {[%clk 0:04:50.9]} 7... O-O {[%clk 0:04:45.3]} 8. h3 {[%clk
0:04:50]} 8... Re8 {[%clk 0:04:40.2]} 9. O-O {[%clk 0:04:48.6]} 9... Qc7 {[%clk
0:04:39.6]} 10. Re1 {[%clk 0:04:43.7]} 10... e4 {[%clk 0:04:35.1]} 11. Nxe4
{[%clk 0:04:37.3]} 11... Nxe4 {[%clk 0:04:32.5]} 12. dxe4 {[%clk 0:04:35.9]}
12... Qg3 {[%clk 0:04:04.4]} 13. Kf1 {[%clk 0:04:22.3]} 13... Qxf2# {[%clk
0:04:00.8]} 0-1

[Event "Live Chess"]
[Site "Chess.com"]
[Date "2023.05.21"]
[Round "-"]
[White "stevochess11"]
[Black "Tushinskiy"]
[Result "0-1"]
[WhiteElo "1785"]
[BlackElo "2161"]
[TimeControl "300"]
[EndTime "17:40:02 PDT"]
[Termination "Tushinskiy won by resignation"]

1. e4 {[%clk 0:04:55.9]} 1... e5 {[%clk 0:04:54.2]} 2. a3 {[%clk 0:04:45.9]}
2... d6 {[%clk 0:04:54.1]} 3. d3 {[%clk 0:04:43]} 3... Nf6 {[%clk 0:04:53.2]} 4.
f3 {[%clk 0:04:37.4]} 4... Be7 {[%clk 0:04:53.1]} 5. g3 {[%clk 0:04:36]} 5...
O-O {[%clk 0:04:53]} 6. Nh3 {[%clk 0:04:34.4]} 6... c6 {[%clk 0:04:52.9]} 7. Nf2
{[%clk 0:04:33]} 7... Nbd7 {[%clk 0:04:52.8]} 8. Bg2 {[%clk 0:04:31.7]} 8... Nc5
{[%clk 0:04:50.4]} 9. b4 {[%clk 0:04:29]} 9... Ne6 {[%clk 0:04:49.6]} 10. O-O
{[%clk 0:04:22.7]} 10... a5 {[%clk 0:04:44.5]} 11. c3 {[%clk 0:04:16.7]} 11...
d5 {[%clk 0:04:41.7]} 12. f4 {[%clk 0:04:08.5]} 12... exf4 {[%clk 0:04:39.3]}
13. gxf4 {[%clk 0:04:07.2]} 13... axb4 {[%clk 0:04:37.9]} 14. f5 {[%clk
0:04:02.6]} 14... Nc7 {[%clk 0:04:32.1]} 15. cxb4 {[%clk 0:03:46]} 15... dxe4
{[%clk 0:04:30.3]} 16. dxe4 {[%clk 0:03:42.8]} 16... Qxd1 {[%clk 0:04:30.2]} 17.
Rxd1 {[%clk 0:03:41.4]} 17... Bxb4 {[%clk 0:04:29.6]} 18. Bb2 {[%clk 0:03:39]}
18... Bc5 {[%clk 0:04:27.3]} 19. Bxf6 {[%clk 0:03:33.9]} 19... gxf6 {[%clk
0:04:25.7]} 20. Rf1 {[%clk 0:03:30.3]} 20... Nb5 {[%clk 0:04:23.7]} 21. Kh1
{[%clk 0:03:28]} 21... Nxa3 {[%clk 0:04:21.3]} 22. Ng4 {[%clk 0:03:25.4]} 22...
Kg7 {[%clk 0:04:16.1]} 23. e5 {[%clk 0:03:17.5]} 23... fxe5 {[%clk 0:04:12.9]}
24. f6+ {[%clk 0:03:15.7]} 24... Kh8 {[%clk 0:04:11.5]} 25. Rf3 {[%clk
0:03:10.8]} 25... Bxg4 {[%clk 0:04:09.1]} 26. Rg3 {[%clk 0:02:58.5]} 26... Nxb1
{[%clk 0:04:07.5]} 27. Rxb1 {[%clk 0:02:56.2]} 27... Bf5 {[%clk 0:04:05.8]} 28.
Rxb7 {[%clk 0:02:54.2]} 28... Ra1+ {[%clk 0:04:04.4]} 29. Bf1 {[%clk 0:02:52.9]}
29... Rxf1+ {[%clk 0:04:03.5]} 0-1

[Event "Live Chess"]
[Site "Chess.com"]
[Date "2023.05.21"]
[Round "-"]
[White "GEMdzq"]
[Black "chessfiction"]
[Result "1/2-1/2"]
[WhiteElo "2290"]
[BlackElo "2345"]
[TimeControl "300"]
[EndTime "17:40:11 PDT"]
[Termination "Game drawn - insufficient material"]

1. e4 {[%clk 0:04:58.2]} 1... e6 {[%clk 0:04:58]} 2. d4 {[%clk 0:04:57]} 2... d5
{[%clk 0:04:57.9]} 3. Nc3 {[%clk 0:04:56]} 3... Bb4 {[%clk 0:04:56.4]} 4. e5
{[%clk 0:04:54.8]} 4... Ne7 {[%clk 0:04:55.5]} 5. Bd2 {[%clk 0:04:52.8]} 5... c5
{[%clk 0:04:54.3]} 6. Nb5 {[%clk 0:04:51.1]} 6... Bxd2+ {[%clk 0:04:50.5]} 7.
Qxd2 {[%clk 0:04:51]} 7... O-O {[%clk 0:04:49.1]} 8. f4 {[%clk 0:04:49.3]} 8...
cxd4 {[%clk 0:04:48.2]} 9. Nf3 {[%clk 0:04:48]} 9... Nbc6 {[%clk 0:04:47.7]} 10.
O-O-O {[%clk 0:04:38.3]} 10... Nf5 {[%clk 0:04:42.9]} 11. Nbxd4 {[%clk
0:04:27.8]} 11... Nfxd4 {[%clk 0:04:39.7]} 12. Nxd4 {[%clk 0:04:26.8]} 12... Bd7
{[%clk 0:04:37.9]} 13. h4 {[%clk 0:04:22.2]} 13... Qa5 {[%clk 0:04:25.2]} 14.
Qxa5 {[%clk 0:04:07.4]} 14... Nxa5 {[%clk 0:04:25.1]} 15. b3 {[%clk 0:04:03.5]}
15... Rac8 {[%clk 0:04:22.8]} 16. Kb2 {[%clk 0:04:01.4]} 16... a6 {[%clk
0:04:20]} 17. h5 {[%clk 0:03:57.8]} 17... h6 {[%clk 0:04:18.5]} 18. g3 {[%clk
0:03:36.6]} 18... f6 {[%clk 0:04:17.5]} 19. Re1 {[%clk 0:03:33.9]} 19... fxe5
{[%clk 0:04:16.1]} 20. Rxe5 {[%clk 0:03:32.5]} 20... Nc6 {[%clk 0:04:15.1]} 21.
Nxc6 {[%clk 0:03:31.2]} 21... Rxc6 {[%clk 0:04:14.8]} 22. Bd3 {[%clk 0:03:27.3]}
22... Rf6 {[%clk 0:04:07.5]} 23. Rhe1 {[%clk 0:03:25.3]} 23... Be8 {[%clk
0:04:03.8]} 24. Be2 {[%clk 0:03:16.9]} 24... Bf7 {[%clk 0:03:56.6]} 25. Bg4
{[%clk 0:03:15.1]} 25... Kf8 {[%clk 0:03:54.3]} 26. R1e2 {[%clk 0:03:01.3]}
26... Ke7 {[%clk 0:03:53]} 27. Rxd5 {[%clk 0:02:58.3]} 27... Kf8 {[%clk
0:03:48.8]} 28. Rd8+ {[%clk 0:02:52.1]} 28... Ke7 {[%clk 0:03:47.6]} 29. Rb8
{[%clk 0:02:50.7]} 29... Rc7 {[%clk 0:03:45.3]} 30. f5 {[%clk 0:02:44.9]} 30...
Kd7 {[%clk 0:03:43.3]} 31. fxe6+ {[%clk 0:02:43.6]} 31... Bxe6 {[%clk
0:03:42.3]} 32. Rg8 {[%clk 0:02:18.6]} 32... Kd6 {[%clk 0:03:20.8]} 33. Rd2+
{[%clk 0:02:11.6]} 33... Ke5 {[%clk 0:03:11.7]} 34. Re8 {[%clk 0:02:05.4]} 34...
Rc6 {[%clk 0:03:10.4]} 35. Re2+ {[%clk 0:02:00.3]} 35... Kd5 {[%clk 0:03:09.5]}
36. c4+ {[%clk 0:01:58.2]} 36... Kd4 {[%clk 0:03:05.9]} 37. R8xe6 {[%clk
0:01:56.4]} 37... Rcxe6 {[%clk 0:03:04.5]} 38. Bxe6 {[%clk 0:01:47]} 38... Kd3
{[%clk 0:03:03.6]} 39. Re1 {[%clk 0:01:43.6]} 39... Rf2+ {[%clk 0:03:00.8]} 40.
Ka3 {[%clk 0:01:42.5]} 40... b5 {[%clk 0:02:59.4]} 41. cxb5 {[%clk 0:01:41.5]}
41... axb5 {[%clk 0:02:59.3]} 42. Rd1+ {[%clk 0:01:29.4]} 42... Kc3 {[%clk
0:02:58.5]} 43. Rc1+ {[%clk 0:01:26.3]} 43... Kd4 {[%clk 0:02:53.8]} 44. Kb4
{[%clk 0:01:19.6]} 44... Rxa2 {[%clk 0:02:52.5]} 45. Kxb5 {[%clk 0:01:17.1]}
45... Re2 {[%clk 0:02:51]} 46. Bc8 {[%clk 0:01:06.1]} 46... Re5+ {[%clk
0:02:48.5]} 47. Ka6 {[%clk 0:00:59.4]} 47... Rxh5 {[%clk 0:02:47.7]} 48. b4
{[%clk 0:00:58.9]} 48... Rg5 {[%clk 0:02:45.6]} 49. g4 {[%clk 0:00:56.2]} 49...
Rg6+ {[%clk 0:02:42]} 50. Ka7 {[%clk 0:00:50.6]} 50... h5 {[%clk 0:02:37.7]} 51.
gxh5 {[%clk 0:00:48.1]} 51... Rg3 {[%clk 0:02:36.1]} 52. b5 {[%clk 0:00:46.2]}
52... Ra3+ {[%clk 0:02:35.7]} 53. Kb7 {[%clk 0:00:40.9]} 53... Ra1 {[%clk
0:02:34.1]} 54. b6 {[%clk 0:00:40.1]} 54... Rxc1 {[%clk 0:02:29.2]} 55. Bf5
{[%clk 0:00:34.3]} 55... Rf1 {[%clk 0:02:20.1]} 56. Bg6 {[%clk 0:00:32.3]} 56...
Kc5 {[%clk 0:01:32.7]} 57. Kc7 {[%clk 0:00:29.8]} 57... Ra1 {[%clk 0:01:23.9]}
58. b7 {[%clk 0:00:28.8]} 58... Ra7 {[%clk 0:01:22]} 59. Kc8 {[%clk 0:00:23.2]}
59... Rxb7 {[%clk 0:01:18.7]} 60. Kxb7 {[%clk 0:00:22.6]} 60... Kd6 {[%clk
0:01:18.6]} 61. Kc8 {[%clk 0:00:21.7]} 61... Ke7 {[%clk 0:01:18.5]} 62. Kc7
{[%clk 0:00:20.7]} 62... Kf8 {[%clk 0:01:18.4]} 63. Kd7 {[%clk 0:00:19.9]} 63...
Kg8 {[%clk 0:01:18.3]} 64. Ke6 {[%clk 0:00:19.2]} 64... Kh8 {[%clk 0:01:18.2]}
65. Kf5 {[%clk 0:00:18.4]} 65... Kg8 {[%clk 0:01:17.6]} 66. Kg5 {[%clk 0:00:18]}
66... Kh8 {[%clk 0:01:17.5]} 67. Kf5 {[%clk 0:00:17.1]} 67... Kg8 {[%clk
0:01:16.8]} 68. Ke6 {[%clk 0:00:15.8]} 68... Kh8 {[%clk 0:01:15.9]} 69. Bc2
{[%clk 0:00:15.5]} 69... Kg8 {[%clk 0:01:15]} 70. Kf5 {[%clk 0:00:15.2]} 70...
Kh8 {[%clk 0:01:14.3]} 71. Kg5 {[%clk 0:00:14.6]} 71... Kg8 {[%clk 0:01:14.2]}
72. Ba4 {[%clk 0:00:13.3]} 72... Kh8 {[%clk 0:01:14.1]} 73. Bb5 {[%clk
0:00:12.9]} 73... Kg8 {[%clk 0:01:13.5]} 74. Kg6 {[%clk 0:00:10.3]} 74... Kh8
{[%clk 0:01:12.6]} 75. Bd3 {[%clk 0:00:07.6]} 75... Kg8 {[%clk 0:01:11.8]} 76.
h6 {[%clk 0:00:06.5]} 76... gxh6 {[%clk 0:01:10.4]} 77. Kxh6 {[%clk 0:00:06.4]}
1/2-1/2

[Event "Live Chess"]
[Site "Chess.com"]
[Date "2023.05.21"]
[Round "-"]
[White "Hussamalhaidar"]
[Black "EdenHazard8"]
[Result "1-0"]
[WhiteElo "1093"]
[BlackElo "1987"]
[TimeControl "300"]
[EndTime "17:40:37 PDT"]
[Termination "Hussamalhaidar won by checkmate"]

1. b3 {[%clk 0:04:54.7]} 1... e5 {[%clk 0:04:59.9]} 2. Bb2 {[%clk 0:04:54.1]}
2... Nc6 {[%clk 0:04:59.2]} 3. e3 {[%clk 0:04:52.2]} 3... d5 {[%clk 0:04:58.7]}
4. Bb5 {[%clk 0:04:50.7]} 4... f6 {[%clk 0:04:57.6]} 5. f4 {[%clk 0:04:43.4]}
5... Bd6 {[%clk 0:04:54.1]} 6. fxe5 {[%clk 0:04:38.1]} 6... fxe5 {[%clk
0:04:54]} 7. Bxc6+ {[%clk 0:04:33.2]} 7... bxc6 {[%clk 0:04:52.1]} 8. Bxe5
{[%clk 0:04:28.2]} 8... Bxe5 {[%clk 0:04:49.4]} 9. Qh5+ {[%clk 0:04:27.5]} 9...
Kf8 {[%clk 0:04:48.2]} 10. Qxe5 {[%clk 0:04:26.2]} 10... Qf6 {[%clk 0:04:47.8]}
11. Nf3 {[%clk 0:04:23.3]} 11... Qe7 {[%clk 0:04:40.7]} 12. d4 {[%clk
0:04:15.2]} 12... Nf6 {[%clk 0:04:38.5]} 13. Qxe7+ {[%clk 0:04:10]} 13... Kxe7
{[%clk 0:04:37.1]} 14. Ne5 {[%clk 0:04:07]} 14... Bb7 {[%clk 0:04:28.3]} 15. O-O
{[%clk 0:04:04.8]} 15... Rhf8 {[%clk 0:04:23.7]} 16. Nc3 {[%clk 0:03:59.2]}
16... Rf7 {[%clk 0:04:22.1]} 17. Nxf7 {[%clk 0:03:55.8]} 17... Kxf7 {[%clk
0:04:20.6]} 18. g4 {[%clk 0:03:53]} 18... Ke6 {[%clk 0:04:18.5]} 19. g5 {[%clk
0:03:44.3]} 19... Nd7 {[%clk 0:04:17.5]} 20. e4 {[%clk 0:03:40.8]} 20... Kd6
{[%clk 0:04:10.5]} 21. e5+ {[%clk 0:03:38.9]} 21... Ke6 {[%clk 0:04:09]} 22. Rf3
{[%clk 0:03:30]} 22... c5 {[%clk 0:04:07.3]} 23. Nb5 {[%clk 0:03:18.8]} 23...
Rc8 {[%clk 0:04:03.9]} 24. c3 {[%clk 0:03:07.3]} 24... cxd4 {[%clk 0:04:01.3]}
25. cxd4 {[%clk 0:03:04.6]} 25... a6 {[%clk 0:03:59.6]} 26. Na3 {[%clk
0:02:56.3]} 26... c5 {[%clk 0:03:57.8]} 27. Nc2 {[%clk 0:02:51.7]} 27... cxd4
{[%clk 0:03:52.5]} 28. Nxd4+ {[%clk 0:02:50.7]} 28... Kxe5 {[%clk 0:03:51.9]}
29. Rd1 {[%clk 0:02:46]} 29... Nc5 {[%clk 0:03:43.4]} 30. b4 {[%clk 0:02:38.1]}
30... Ne4 {[%clk 0:03:40.8]} 31. Re3 {[%clk 0:02:33.2]} 31... Rc4 {[%clk
0:03:34.6]} 32. Nf3+ {[%clk 0:02:15.6]} 32... Kf4 {[%clk 0:03:30.9]} 33. Red3
{[%clk 0:02:08.7]} 33... Rxb4 {[%clk 0:03:16.4]} 34. Rf1 {[%clk 0:01:56.5]}
34... Nxg5 {[%clk 0:03:07.3]} 35. Nd4+ {[%clk 0:01:44.9]} 35... Ke4 {[%clk
0:03:04.2]} 36. Nc2 {[%clk 0:01:30.1]} 36... Rb2 {[%clk 0:03:00.1]} 37. Re3#
{[%clk 0:01:25.7]} 1-0

[Event "Live Chess"]
[Site "Chess.com"]
[Date "2023.05.21"]
[Round "-"]
[White "AlanPaling"]
[Black "wot-not"]
[Result "0-1"]
[WhiteElo "1382"]
[BlackElo "1547"]
[TimeControl "300"]
[EndTime "17:40:44 PDT"]
[Termination "wot-not won by resignation"]

1. c4 {[%clk 0:04:58.6]} 1... Nf6 {[%clk 0:04:57.9]} 2. Nc3 {[%clk 0:04:57.2]}
2... d6 {[%clk 0:04:56.6]} 3. g3 {[%clk 0:04:54.5]} 3... e5 {[%clk 0:04:56.1]}
4. Bg2 {[%clk 0:04:53.3]} 4... Be7 {[%clk 0:04:53.9]} 5. e4 {[%clk 0:04:52]}
5... Bg4 {[%clk 0:04:52.3]} 6. Nge2 {[%clk 0:04:48.7]} 6... Qd7 {[%clk
0:04:51.3]} 7. O-O {[%clk 0:04:46.3]} 7... Bh3 {[%clk 0:04:50.5]} 8. f4 {[%clk
0:04:42.7]} 8... Bxg2 {[%clk 0:04:49.3]} 9. Kxg2 {[%clk 0:04:41]} 9... exf4
{[%clk 0:04:48.8]} 10. Nxf4 {[%clk 0:04:35]} 10... O-O {[%clk 0:04:45.7]} 11. d3
{[%clk 0:04:32.1]} 11... Nc6 {[%clk 0:04:44.7]} 12. Be3 {[%clk 0:04:30]} 12...
Ne5 {[%clk 0:04:43]} 13. Nfd5 {[%clk 0:04:24.1]} 13... Nxd5 {[%clk 0:04:41]} 14.
Nxd5 {[%clk 0:04:22.9]} 14... c6 {[%clk 0:04:34.3]} 15. Nxe7+ {[%clk 0:04:21.2]}
15... Qxe7 {[%clk 0:04:33.6]} 16. Qd2 {[%clk 0:04:19.5]} 16... Rad8 {[%clk
0:04:25.7]} 17. b3 {[%clk 0:04:12.4]} 17... d5 {[%clk 0:04:15.9]} 18. exd5
{[%clk 0:04:06.2]} 18... cxd5 {[%clk 0:04:15.3]} 19. Qc3 {[%clk 0:03:42.3]}
19... Ng4 {[%clk 0:03:57.1]} 20. Bf4 {[%clk 0:03:33.6]} 20... Ne3+ {[%clk
0:03:49.7]} 21. Bxe3 {[%clk 0:03:31.6]} 21... Qxe3 {[%clk 0:03:48.8]} 22. Rae1
{[%clk 0:03:29.3]} 22... Qc5 {[%clk 0:03:40.6]} 23. d4 {[%clk 0:03:22.9]} 23...
Qc6 {[%clk 0:03:29.2]} 24. c5 {[%clk 0:03:20.8]} 24... b6 {[%clk 0:03:27]} 25.
b4 {[%clk 0:03:19.1]} 25... Rde8 {[%clk 0:03:17.3]} 26. Rxe8 {[%clk 0:03:13.5]}
26... Rxe8 {[%clk 0:03:15.8]} 27. Re1 {[%clk 0:03:12.1]} 27... Re4 {[%clk
0:03:00.5]} 28. Qd3 {[%clk 0:02:58.4]} 28... Rxe1 {[%clk 0:02:57.4]} 29. Qd2
{[%clk 0:02:39.2]} 29... Qe6 {[%clk 0:02:53.6]} 30. Qg5 {[%clk 0:02:37.1]} 0-1